fUSD/lending_fUSD_20240215
["ID","MTS","AMOUNT","RATE_DAILY","PERIOD"]
[314135880,1708018249618,-500.0,0.00038356,7]
[314135881,1708018249632,-500.0,0.00038356,7]
[314135882,1708018249648,-3986.08,0.00038356,7]
[314135883,1708018249663,-500.0,0.00038356,7]
[314135884,1708018249678,-500.0,0.00038356,7]
[314135885,1708018249693,-500.0,0.00038356,7]
[314135886,1708018249709,-500.0,0.00038356,7]
[314135887,1708018249723,-500.0,0.00038356,7]
[314135888,1708018249740,-2614.58,0.00038356,7]
[314135889,1708018249757,-500.0,0.00038356,7]
[314135890,1708018249771,-500.0,0.00038356,7]
[314135891,1708018249786,-500.0,0.00038356,7]
[314135892,1708018249801,-547.87629574,0.00038356,7]
[314135893,1708018249815,-500.0,0.00038356,7]
[314135894,1708018249830,-500.0,0.00038356,7]
[314135895,1708018249844,-517.95482535,0.00038356,7]
[314135896,1708018249859,-500.0,0.00038356,7]
[314135897,1708018249873,-500.0,0.00038356,7]
[314135898,1708018249888,-500.0,0.00038356,7]
[314135899,1708018249903,-192.51259024,0.00038356,7]
[314135900,1708018249918,-500.0,0.00038356,7]
[314135901,1708018249934,-500.0,0.00038356,7]
[314135902,1708018249946,-500.0,0.00038356,7]
[314135903,1708018249956,-500.0,0.00038356,7]
[314135904,1708018249965,-500.0,0.00038356,7]
[314135905,1708018249976,-777.92,0.00038356,7]
[314135906,1708018249987,-500.0,0.00038356,7]
[314135907,1708018249997,-500.0,0.00038356,7]
[314135908,1708018250006,-500.0,0.00038356,7]
[314135909,1708018250016,-500.0,0.00038356,7]
[314135910,1708018250026,-500.0,0.00038356,7]
[314135911,1708018250036,-500.0,0.00038356,7]
[314135912,1708018250046,-500.0,0.00038356,7]
[314135913,1708018250060,-1473.34,0.00038356,7]
[314135914,1708018250070,-500.0,0.00038356,7]
[314135915,1708018250080,-500.0,0.00038356,7]
[314135916,1708018250090,-1138.25,0.00038356,7]
[314135917,1708018250101,-500.0,0.00038356,7]
[314135918,1708018250110,-500.0,0.00038356,7]
[314135919,1708018250120,-500.0,0.00038356,7]
[314135920,1708018250130,-500.0,0.00038356,7]
[314135921,1708018250430,-869.78,0.00038356,7]
[314135922,1708018250454,-947.83,0.00038356,7]
[314135923,1708018250480,-500.0,0.00038356,2]
[314135924,1708018250492,-500.0,0.00038356,7]
[314135925,1708018250503,-500.0,0.00038356,7]
[314135926,1708018250512,-500.0,0.00038356,7]
[314135927,1708018250523,-500.0,0.00038356,7]
[314135928,1708018250532,-500.0,0.00038356,7]
[314135929,1708018250542,-2210.02,0.00038356,7]
[314135930,1708018250551,-516.92789116,0.00038356,7]
[314135931,1708018250560,-500.0,0.00038356,7]
[314135932,1708018250569,-8679.16,0.00038356,7]
[314135933,1708018250579,-3545.71,0.00038356,7]
[314135934,1708018250588,-211.84379268,0.00038356,7]
[314135935,1708018250597,-500.0,0.00038356,7]
[314135936,1708018250606,-567.11,0.00038356,7]
[314135937,1708018250616,-1164.52,0.00038356,7]
[314135938,1708018250628,-2631.21,0.00038356,7]
[314135939,1708018250638,-2241.71,0.00038356,7]
[314135940,1708018250647,-500.0,0.00038356,7]
[314135941,1708018250656,-500.0,0.00038356,7]
[314135942,1708018250665,-427.34707273,0.00038356,7]
[314135943,1708018250674,-911.32,0.00038356,7]
[314135944,1708018250684,-525.53729726,0.00038356,7]
[314135945,1708018250693,-500.0,0.00038356,7]
[314135946,1708018250702,-500.0,0.00038356,7]
[314135947,1708018250712,-509.41777598,0.00038356,7]
[314135948,1708018250721,-500.0,0.00038356,7]
[314135949,1708018250734,-500.0,0.00038356,7]
[314135950,1708018250744,-416.0,0.00038356,7]
[314135951,1708018250754,-500.0,0.00038356,7]
[314135952,1708018250764,-500.0,0.00038356,7]
[314135953,1708018250775,-2329.81,0.00038356,7]
[314135954,1708018250785,-500.0,0.00038356,7]
[314135955,1708018250795,-512.07450883,0.00038356,7]
[314135956,1708018250806,-500.0,0.00038356,7]
[314135957,1708018250815,-500.0,0.00038356,7]
[314135958,1708018250825,-642.71,0.00038356,7]
[314135959,1708018250834,-500.0,0.00038356,7]
[314135960,1708018250844,-500.0,0.00038356,7]
[314135961,1708018250853,-500.0,0.00038356,7]
[314135962,1708018250863,-538.66,0.00038356,7]
[314135963,1708018250872,-500.0,0.00038356,7]
[314135964,1708018250882,-500.0,0.00038356,7]
[314135965,1708018250892,-500.0,0.00038356,7]
[314135966,1708018250902,-500.0,0.00038356,7]
[314135967,1708018250911,-500.0,0.00038356,7]
[314135968,1708018250921,-500.0,0.00038356,7]
[314135969,1708018250931,-500.0,0.00038356,7]
[314135970,1708018250940,-500.0,0.00038356,7]
[314135971,1708018250950,-500.0,0.00038356,7]
[314135972,1708018250960,-3685.18,0.00038356,7]
[314135973,1708018250970,-540.64594209,0.00038356,7]
[314135974,1708018250980,-500.0,0.00038356,7]
[314135975,1708018250993,-527.25,0.00038356,7]
[314135976,1708018251003,-500.0,0.00038356,7]
[314135977,1708018251013,-1026.11,0.00038356,7]
[314135978,1708018251022,-500.0,0.00038356,7]
[314135979,1708018251032,-500.0,0.00038356,7]
[314135980,1708018251042,-518.54240694,0.00038356,7]
[314135981,1708018251052,-500.0,0.00038356,7]
[314135982,1708018251061,-655.05,0.00038356,7]
[314135983,1708018251074,-500.0,0.00038356,7]
[314135984,1708018251084,-500.0,0.00038356,7]
[314135985,1708018251094,-500.0,0.00038356,7]
[314135986,1708018251104,-500.0,0.00038356,7]
[314135987,1708018251113,-522.36806125,0.00038356,7]
[314135988,1708018251123,-1000.0,0.00038356,7]
[314135989,1708018251132,-500.0,0.00038356,7]
[314135990,1708018251141,-1138.63,0.00038356,7]
[314135991,1708018251151,-4993.89,0.00038356,7]
[314135992,1708018251161,-500.0,0.00038356,7]
[314135993,1708018251171,-500.0,0.00038356,7]
[314135994,1708018251181,-2149.2,0.00038356,7]
[314135995,1708018251191,-255.76575026,0.00038356,7]
[314135996,1708018251202,-500.0,0.00038356,7]
[314135997,1708018251212,-707.79,0.00038356,7]
[314135998,1708018251222,-500.0,0.00038356,7]
[314135999,1708018251233,-500.0,0.00038356,7]
[314136000,1708018251243,-774.23,0.00038356,7]
[314136001,1708018251252,-500.0,0.00038356,7]
[314136002,1708018251262,-500.0,0.00038356,7]
[314136003,1708018251272,-930.79,0.00038356,7]
[314136004,1708018251281,-518.51418034,0.00038356,7]
[314136005,1708018251291,-500.0,0.00038356,7]
[314136006,1708018251300,-826.5,0.00038356,7]
[314136007,1708018251310,-500.0,0.00038356,7]
[314136008,1708018251320,-500.0,0.00038356,7]
[314136009,1708018251329,-500.0,0.00038356,7]
[314136010,1708018251338,-500.0,0.00038356,7]
[314136011,1708018251349,-894.69,0.00038356,7]
[314136012,1708018251359,-500.0,0.00038356,7]
[314136013,1708018251368,-3412.68,0.00038356,7]
[314136014,1708018251378,-500.0,0.00038356,7]
[314136015,1708018251388,-500.0,0.00038356,7]
[314136016,1708018251398,-500.0,0.00038356,7]
[314136017,1708018251408,-500.0,0.00038356,7]
[314136018,1708018251419,-500.0,0.00038356,7]
[314136019,1708018251429,-500.0,0.00038356,7]
[314136020,1708018251439,-500.0,0.00038356,7]
[314136021,1708018251460,-500.0,0.00038356,7]
[314136022,1708018251474,-500.0,0.00038356,7]
[314136023,1708018251487,-500.0,0.00038356,7]
[314136024,1708018251497,-500.0,0.00038356,7]
[314136025,1708018251508,-500.0,0.00038356,7]
[314136026,1708018251518,-500.0,0.00038356,7]
[314136027,1708018251529,-500.0,0.00038356,7]
[314136028,1708018251539,-500.0,0.00038356,7]
[314136029,1708018251549,-448.23280228,0.00038356,7]
[314136030,1708018251560,-500.0,0.00038356,7]
[314136031,1708018251570,-500.0,0.00038356,7]
[314136032,1708018251580,-500.0,0.00038356,7]
[314136033,1708018251589,-500.0,0.00038356,7]
[314136034,1708018251599,-500.0,0.00038356,7]
[314136035,1708018251610,-530.97420231,0.00038356,7]
[314136036,1708018251621,-500.0,0.00038356,7]
[314136037,1708018251631,-500.0,0.00038356,7]
[314136038,1708018251642,-500.0,0.00038356,7]
[314136039,1708018251653,-700.66,0.00038356,7]
[314136040,1708018251663,-500.0,0.00038356,7]
[314136041,1708018251673,-500.0,0.00038356,7]
[314136042,1708018251684,-1932.69,0.00038356,7]
[314136043,1708018251694,-532.42,0.00038356,7]
[314136044,1708018251704,-500.0,0.00038356,7]
[314136045,1708018251714,-500.0,0.00038356,7]
[314136046,1708018251725,-500.0,0.00038356,7]
[314136047,1708018251736,-500.0,0.00038356,7]
[314136048,1708018251747,-500.0,0.00038356,7]
[314136049,1708018251756,-2772.41,0.00038356,7]
[314136050,1708018251766,-519.75308008,0.00038356,7]
[314136051,1708018251776,-500.0,0.00038356,7]
[314136052,1708018251786,-500.0,0.00038356,7]
[314136053,1708018251796,-5309.22,0.00038356,7]
[314136054,1708018251806,-508.32973853,0.00038356,7]
[314136055,1708018251815,-500.0,0.00038356,7]
[314136056,1708018251825,-500.0,0.00038356,7]
[314136057,1708018251835,-500.0,0.00038356,7]
[314136058,1708018251844,-921.14,0.00038356,7]
[314136059,1708018251858,-500.0,0.00038356,7]
[314136060,1708018251868,-500.0,0.00038356,7]
[314136061,1708018251878,-720.35,0.00038356,7]
[314136062,1708018251887,-500.0,0.00038356,7]
[314136063,1708018251898,-924.91,0.00038356,7]
[314136064,1708018251907,-612.92875329,0.00038356,7]
[314136065,1708018251917,-500.0,0.00038356,7]
[314136066,1708018251928,-920.12,0.00038356,7]
[314136067,1708018251937,-500.0,0.00038356,7]
[314136068,1708018251947,-500.0,0.00038356,7]
[314136069,1708018251957,-500.0,0.00038356,7]
[314136070,1708018251967,-500.0,0.00038356,7]
[314136071,1708018251976,-606.62,0.00038356,7]
[314136072,1708018251987,-506.10065373,0.00038356,7]
[314136073,1708018251996,-500.0,0.00038356,7]
[314136074,1708018252006,-500.0,0.00038356,7]
[314136075,1708018252016,-500.0,0.00038356,7]
[314136076,1708018252025,-500.0,0.00038356,7]
[314136077,1708018252035,-1253.95,0.00038356,7]
[314136078,1708018252044,-500.0,0.00038356,7]
[314136079,1708018252055,-500.0,0.00038356,7]
[314136080,1708018252066,-768.18,0.00038356,7]
[314136081,1708018252077,-500.0,0.00038356,7]
[314136082,1708018252086,-1475.61,0.00038356,7]
[314136083,1708018252096,-534.40996418,0.00038356,7]
[314136084,1708018252106,-500.0,0.00038356,7]
[314136085,1708018252116,-500.0,0.00038356,7]
[314136086,1708018252126,-500.0,0.00038356,7]
[314136087,1708018252135,-500.0,0.00038356,7]
[314136088,1708018252146,-518.17865854,0.00038356,7]
[314136089,1708018252155,-1090.24,0.00038356,7]
[314136090,1708018252165,-512.9,0.00038356,7]
[314136091,1708018252177,-500.0,0.00038356,7]
[314136092,1708018252188,-573.41862391,0.00038356,7]
[314136093,1708018252197,-500.0,0.00038356,7]
[314136094,1708018252206,-776.88,0.00038356,7]
[314136095,1708018252221,-501.06,0.00038356,7]
[314136096,1708018252261,-500.0,0.00038356,7]
[314136097,1708018252270,-500.0,0.00038356,7]
[314136098,1708018252280,-500.0,0.00038356,7]
[314136099,1708018252290,-598.30216933,0.00038356,7]
[314136100,1708018252299,-500.0,0.00038356,7]
[314136101,1708018252309,-500.0,0.00038356,7]
[314136102,1708018252319,-588.64,0.00038356,7]
[314136103,1708018252328,-500.0,0.00038356,7]
[314136104,1708018252338,-532.53733185,0.00038356,7]
[314136105,1708018252347,-500.0,0.00038356,7]
[314136106,1708018252357,-738.54,0.00038356,7]
[314136107,1708018252366,-500.0,0.00038356,7]
[314136108,1708018252376,-639.06,0.00038356,7]
[314136109,1708018252385,-500.0,0.00038356,7]
[314136110,1708018252395,-49749.16,0.00038356,7]
[314136111,1708018252405,-500.0,0.00038356,7]
[314136112,1708018252414,-500.0,0.00038356,7]
[314136113,1708018252424,-500.0,0.00038356,7]
[314136114,1708018252434,-500.0,0.00038356,7]
[314136115,1708018252443,-500.0,0.00038356,7]
[314136116,1708018252453,-500.0,0.00038356,7]
[314136117,1708018252463,-675.35,0.00038356,7]
[314136118,1708018252473,-500.0,0.00038356,7]
[314136119,1708018252483,-500.0,0.00038356,7]
[314136120,1708018252492,-500.0,0.00038356,7]
[314136121,1708018252502,-500.0,0.00038356,7]
[314136122,1708018252511,-1770.71,0.00038356,7]
[314136123,1708018252521,-500.0,0.00038356,7]
[314136124,1708018252531,-3437.81,0.00038356,7]
[314136125,1708018252540,-528.28342459,0.00038356,7]
[314136126,1708018252550,-500.0,0.00038356,7]
[314136127,1708018252560,-500.0,0.00038356,7]
[314136128,1708018252570,-507.09222841,0.00038356,7]
[314136129,1708018252580,-500.0,0.00038356,7]
[314136130,1708018252590,-500.0,0.00038356,7]
[314136131,1708018252600,-528.6975405,0.00038356,7]
[314136132,1708018252609,-500.0,0.00038356,7]
[314136133,1708018252620,-500.0,0.00038356,7]
[314136134,1708018252630,-188.58746912,0.00038356,7]
[314136135,1708018252641,-1143.79,0.00038356,7]
[314136136,1708018252651,-500.0,0.00038356,7]
[314136137,1708018252660,-500.0,0.00038356,7]
[314136138,1708018252670,-500.0,0.00038356,7]
[314136139,1708018252679,-500.0,0.00038356,7]
[314136140,1708018252689,-500.0,0.00038356,7]
[314136141,1708018252699,-500.0,0.00038356,7]
[314136142,1708018252709,-500.0,0.00038356,7]
[314136143,1708018252718,-897.26,0.00038356,7]
[314136144,1708018252728,-4897.92,0.00038356,7]
[314136145,1708018252741,-505.93365424,0.00038356,7]
[314136146,1708018252751,-500.0,0.00038356,7]
[314136147,1708018252761,-500.0,0.00038356,7]
[314136148,1708018252771,-526.15562697,0.00038356,7]
[314136149,1708018252780,-790.79,0.00038356,7]
[314136150,1708018252790,-500.0,0.00038356,7]
[314136151,1708018252800,-500.0,0.00038356,7]
[314136152,1708018252809,-500.0,0.00038356,7]
[314136153,1708018252820,-500.0,0.00038356,7]
[314136154,1708018252829,-507.42330239,0.00038356,7]
[314136155,1708018252839,-1061.67,0.00038356,7]
[314136156,1708018252849,-500.0,0.00038356,7]
[314136157,1708018252859,-500.0,0.00038356,7]
[314136158,1708018252868,-1445.09,0.00038356,7]
[314136159,1708018252878,-935.06,0.00038356,7]
[314136160,1708018252888,-500.0,0.00038356,7]
[314136161,1708018252898,-500.0,0.00038356,7]
[314136162,1708018252907,-500.45137922,0.00038356,7]
[314136163,1708018252919,-500.0,0.00038356,7]
[314136164,1708018252929,-500.0,0.00038356,7]
[314136165,1708018252939,-500.0,0.00038356,7]
[314136166,1708018252948,-507.97452473,0.00038356,7]
[314136167,1708018252958,-1667.6,0.00038356,7]
[314136168,1708018252968,-836.16,0.00038356,7]
[314136169,1708018252978,-3484.25,0.00038356,7]
[314136170,1708018252988,-500.0,0.00038356,7]
[314136171,1708018252998,-500.0,0.00038356,7]
[314136172,1708018253007,-520.35067096,0.00038356,7]
[314136173,1708018253016,-500.0,0.00038356,7]
[314136174,1708018253026,-500.0,0.00038356,7]
[314136175,1708018253035,-1514.0,0.00038356,7]
[314136176,1708018253044,-500.0,0.00038356,7]
[314136177,1708018253055,-500.0,0.00038356,7]
[314136178,1708018253065,-500.0,0.00038356,7]
[314136179,1708018253075,-500.0,0.00038356,7]
[314136180,1708018253084,-634.39,0.00038356,7]
[314136181,1708018253094,-1017.21,0.00038356,7]
[314136182,1708018253105,-6535.16,0.00038356,7]
[314136183,1708018253114,-500.0,0.00038356,7]
[314136184,1708018253125,-500.0,0.00038356,7]
[314136185,1708018253135,-500.0,0.00038356,7]
[314136186,1708018253145,-510.33569649,0.00038356,7]
[314136187,1708018253154,-576.84,0.00038356,7]
[314136188,1708018253164,-728.0,0.00038356,7]
[314136189,1708018253173,-520.64124528,0.00038356,7]
[314136190,1708018253185,-500.0,0.00038356,7]
[314136191,1708018253199,-500.0,0.00038356,7]
[314136192,1708018253209,-500.0,0.00038356,7]
[314136193,1708018253218,-436.04376429,0.00038356,7]
[314136194,1708018253228,-536.03,0.00038356,7]
[314136195,1708018253238,-661.05,0.00038356,7]
[314136196,1708018253247,-500.0,0.00038356,7]
[314136197,1708018253259,-515.79290533,0.00038356,7]
[314136198,1708018253273,-500.0,0.00038356,7]
[314136199,1708018253284,-500.0,0.00038356,7]
[314136200,1708018253293,-3599.6,0.00038356,7]
[314136201,1708018253303,-4889.48,0.00038356,7]
[314136202,1708018253313,-4152.78,0.00038356,7]
[314136203,1708018253322,-500.0,0.00038356,7]
[314136204,1708018253331,-500.0,0.00038356,7]
[314136205,1708018253340,-500.0,0.00038356,7]
[314136206,1708018253349,-500.0,0.00038356,7]
[314136207,1708018253359,-500.0,0.00038356,7]
[314136208,1708018253369,-2560.96,0.00038356,7]
[314136209,1708018253379,-664.63,0.00038356,7]
[314136210,1708018253389,-500.0,0.00038356,7]
[314136211,1708018253398,-500.0,0.00038356,7]
[314136212,1708018253408,-500.0,0.00038356,7]
[314136213,1708018253417,-508.9142918,0.00038356,7]
[314136214,1708018253427,-500.0,0.00038356,7]
[314136215,1708018253436,-500.0,0.00038356,7]
[314136216,1708018253446,-500.0,0.00038356,7]
[314136217,1708018253455,-500.0,0.00038356,7]
[314136218,1708018253465,-500.0,0.00038356,7]
[314136219,1708018253474,-3918.17,0.00038356,7]
[314136220,1708018253485,-500.0,0.00038356,7]
[314136221,1708018253495,-1662.08,0.00038356,7]
[314136222,1708018253505,-500.0,0.00038356,7]
[314136223,1708018253516,-500.0,0.00038356,7]
[314136224,1708018253526,-500.0,0.00038356,7]
[314136225,1708018253537,-500.0,0.00038356,7]
[314136226,1708018253546,-500.0,0.00038356,7]
[314136227,1708018253556,-1287.35,0.00038356,7]
[314136228,1708018253565,-500.0,0.00038356,7]
[314136229,1708018253574,-513.42133445,0.00038356,7]
[314136230,1708018253584,-500.0,0.00038356,7]
[314136231,1708018253593,-518.46699775,0.00038356,7]
[314136232,1708018253602,-500.0,0.00038356,7]
[314136233,1708018253612,-500.0,0.00038356,2]
[314136234,1708018253621,-500.0,0.00038356,7]
[314136235,1708018253630,-211.46149751,0.00038356,7]
[314136236,1708018253639,-984.8,0.00038356,7]
[314136237,1708018253649,-500.0,0.00038356,7]
[314136238,1708018253658,-500.0,0.00038356,7]
[314136239,1708018253667,-500.0,0.00038356,7]
[314136240,1708018253677,-500.0,0.00038356,2]
[314136241,1708018253686,-495.67999137,0.00038356,7]
[314136242,1708018253696,-500.0,0.00038356,5]
[314136243,1708018253706,-500.0,0.00038356,7]
[314136244,1708018253716,-500.0,0.00038356,7]
[314136245,1708018253725,-507.88056127,0.00038356,7]
[314136246,1708018253911,-500.0,0.00038356,7]
[314136247,1708018253921,-500.0,0.00038356,7]
[314136248,1708018253931,-500.0,0.00038356,7]
[314136249,1708018253940,-500.0,0.00038356,7]
[314136250,1708018253950,-500.0,0.00038356,7]
[314136251,1708018253960,-500.0,0.00038356,7]
[314136252,1708018253969,-500.0,0.00038356,7]
[314136253,1708018253981,-500.0,0.00038356,7]
[314136254,1708018253992,-585.17,0.00038356,7]
[314136255,1708018254001,-531.23707262,0.00038356,7]
[314136256,1708018254011,-1687.97,0.00038356,7]
[314136257,1708018254020,-500.0,0.00038356,7]
[314136258,1708018254030,-216.15251474,0.00038356,7]
[314136259,1708018254038,-500.0,0.00038356,7]
[314136260,1708018254048,-500.0,0.00038356,7]
[314136261,1708018254058,-565.36238069,0.00038356,2]
[314136262,1708018254068,-617.61,0.00038356,7]
[314136263,1708018254077,-500.0,0.00038356,7]
[314136264,1708018254087,-500.0,0.00038356,7]
[314136265,1708018254096,-500.0,0.00038356,7]
[314136266,1708018254106,-500.0,0.00038356,7]
[314136267,1708018254115,-542.63054279,0.00038356,7]
[314136268,1708018254124,-506.8,0.00038356,7]
[314136269,1708018254134,-500.0,0.00038356,7]
[314136270,1708018254144,-155.52383233,0.00038356,7]
[314136271,1708018254153,-500.0,0.00038356,7]
[314136272,1708018254163,-500.0,0.00038356,7]
[314136273,1708018254172,-626.96500216,0.00038356,7]
[314136274,1708018254181,-500.0,0.00038356,7]
[314136275,1708018254190,-526.94371689,0.00038356,7]
[314136276,1708018254199,-500.0,0.00038356,7]
[314136277,1708018254209,-500.0,0.00038356,7]
[314136278,1708018254218,-500.0,0.00038356,7]
[314136279,1708018254227,-1528.61,0.00038356,7]
[314136280,1708018254238,-500.0,0.00038356,7]
[314136281,1708018254247,-2664.12,0.00038356,7]
[314136282,1708018254256,-500.0,0.00038356,7]
[314136283,1708018254265,-500.0,0.00038356,7]
[314136284,1708018254275,-151.0,0.00038356,7]
[314136285,1708018254293,-151.0,0.00038356,7]
[314136286,1708018254304,-151.0,0.00038356,7]
[314136287,1708018254314,-151.0,0.00038356,7]
[314136288,1708018254324,-290.715238,0.00038356,7]
[314136289,1708018254334,-151.0,0.00038356,7]
[314136290,1708018254345,-151.0,0.00038356,7]
[314136291,1708018254355,-151.0,0.00038356,7]
[314136292,1708018254364,-151.0,0.00038356,7]
[314136293,1708018254374,-151.0,0.00038356,2]
[314136294,1708018254384,-151.0,0.00038356,2]
[314136295,1708018254393,-151.0,0.00038356,2]
[314136296,1708018254403,-151.0,0.00038356,2]
[314136297,1708018254412,-3654.07,0.00038356,15]
[314136298,1708018254422,-4000.0,0.00038356,30]
[314136299,1708018254432,-242.808841,0.00038356,7]
[314136300,1708018254442,-242.808841,0.00038356,7]
[314136301,1708018254451,-242.808841,0.00038356,7]
[314136302,1708018254461,-242.808841,0.00038356,7]
[314136303,1708018254470,-151.0,0.00038356,7]
[314136304,1708018254480,-151.0,0.00038356,7]
[314136305,1708018254490,-151.0,0.00038356,7]
[314136306,1708018254499,-151.0,0.00038356,7]
[314136307,1708018254509,-151.0,0.00038356,7]
[314136308,1708018254518,-151.0,0.00038356,7]
[314136309,1708018254528,-151.0,0.00038356,7]
[314136310,1708018254538,-151.0,0.00038356,7]
[314136311,1708018254547,-151.0,0.00038356,7]
[314136312,1708018254556,-151.0,0.00038356,7]
[314136313,1708018254566,-151.0,0.00038356,7]
[314136314,1708018254576,-151.0,0.00038356,7]
[314136315,1708018254585,-151.0,0.00038356,7]
[314136316,1708018254594,-150.0,0.00038363,2]
[314136317,1708018254603,-150.0,0.00038371,2]
[314136318,1708018254613,-1315.40695577,0.00038377,2]
[314136319,1708018254622,-150.0,0.0003838,2]
[314136320,1708018254632,-186.33802112,0.00038402,11]
[314136321,1708018254642,-543.67,0.00038404,2]
[314136322,1708018254652,-150.0,0.00038414,2]
[314136323,1708018254661,-150.0,0.00038415,2]
[314136324,1708018254670,-151.0,0.00038415,7]
[314136325,1708018254680,-289.97428547,0.00038428,2]
[314136326,1708018254689,-150.0,0.00038433,2]
[314136327,1708018254699,-150.0,0.00038434,2]
[314136328,1708018254708,-150.0,0.00038442,2]
[314136329,1708018254719,-150.0,0.00038456,2]
[314136330,1708018254728,-790.07660069,0.00038464,8]
[314136331,1708018254739,-150.0,0.00038477,2]
[314136332,1708018254748,-150.0,0.00038496,2]
[314136333,1708018254757,-11944.2997994,0.000385,7]
[314136334,1708018254767,-4416.78649288,0.00038502,12]
[314136335,1708018254776,-150.0,0.00038511,2]
[314136336,1708018254786,-247.405127,0.0003852,7]
[314136337,1708018254795,-236.392549,0.0003852,7]
[314136338,1708018254805,-150.0,0.00038522,2]
[314136339,1708018254815,-566.11878016,0.0003853,2]
[314136340,1708018254825,-288.56,0.00038532,2]
[314136341,1708018254834,-150.0,0.00038534,2]
[314136342,1708018254843,-627.02,0.00038539,2]
[314136343,1708018254853,-150.0,0.00038547,2]
[314136344,1708018254862,-150.0,0.00038549,2]
[314136345,1708018254872,-300.0,0.00038553,2]
[314136346,1708018254882,-150.0,0.00038563,2]
[314136347,1708018254891,-150.0,0.00038565,2]
[314136348,1708018254901,-150.0,0.00038572,2]
[314136349,1708018254911,-150.0,0.00038579,2]
[314136350,1708018254920,-2024.2867352,0.00038587,2]
[314136351,1708018254930,-150.0,0.0003859,2]
[314136352,1708018254939,-300.0,0.00038592,2]
[314136353,1708018254950,-543.67,0.00038596,2]
[314136354,1708018254961,-1395.965692,0.000386,36]
[314136355,1708018254970,-3000.0,0.000386,36]
[314136356,1708018254980,-2194.62448,0.000386,27]
[314136357,1708018254990,-150.0,0.00038603,2]
[314136358,1708018255000,-3000.0,0.0003861,36]
[314136359,1708018255010,-3000.0,0.0003862,36]
[314136360,1708018255020,-153.16539538,0.0003862,2]
[314136361,1708018255030,-50546.6118576,0.00038624,2]
[314136362,1708018255040,-2123.4014084,0.00038624,2]
[314136363,1708018255051,-6619.8797253,0.00038624,2]
[314136364,1708018255062,-4048.602125,0.00038624,2]
[314136365,1708018255074,-433.2452459,0.00038624,2]
[314136366,1708018255083,-1193.7817727,0.00038624,2]
[314136367,1708018255093,-34143.75046,0.00038624,2]
[314136368,1708018255102,-1665.3044192,0.00038624,2]
[314136369,1708018255111,-184.70027688,0.00038627,2]
[314136370,1708018255121,-3316.12830692,0.00038629,2]
[314136371,1708018255131,-300.02,0.00038629,2]
[314136372,1708018255143,-151.0,0.00038629,7]
[314136373,1708018255152,-150.0,0.00038629,2]
[314136374,1708018255162,-150.0,0.00038629,2]
[314136375,1708018255171,-160.57533571,0.00038629,30]
[314136376,1708018255181,-476.89668936,0.0003863,7]
[314136377,1708018255190,-551.05007198,0.0003863,7]
[314136378,1708018255200,-500.0,0.0003863,7]
[314136379,1708018255209,-500.0,0.0003863,7]